bitfinex/quotes_SOLUSD_20250206
["timestamp","ask_amount","ask_price","bid_price","bid_amount"]
[1738828524879,0.03,202.28,202.27,87.10600477]
[1738828527283,0.03,202.28,202.27,77.72050378]
[1738828531096,0.03,202.28,202.27,72.77670378]
[1738828531276,0.03,202.28,202.27,77.72050378]
[1738828532304,0.03,202.28,202.27,58.86289525]
[1738828532599,0.03,202.28,202.27,64.05767525]
[1738828533283,0.03,202.28,202.27,87.10600477]
[1738828533489,0.03,202.28,202.27,87.8473954]
[1738828533868,0.03,202.28,202.27,77.72050378]
[1738828535389,0.03,202.28,202.27,87.10600477]
[1738828536683,0.03,202.28,202.27,77.72050378]
[1738828537463,0.03,202.28,202.27,77.59501378]
[1738828538870,0.03,202.28,202.27,87.10600477]
[1738828539475,0.03,202.28,202.27,86.98051477]
[1738828539989,0.03,202.28,202.27,77.59501378]
[1738828540295,0.03,202.28,202.27,64.05767525]
[1738828542314,0.03,202.28,202.27,58.86289525]
[1738828543220,9.41550099,202.28,202.27,58.86289525]
[1738828543523,9.41550099,202.28,202.25,0.063]
[1738828544187,0.03,202.28,202.27,0.25098]
[1738828545617,0.03,202.28,202.27,5.19478]
[1738828548726,0.03,202.28,202.27,18.85760853]
[1738828552432,0.03,202.28,202.27,77.72050378]
[1738828554934,0.03,202.28,202.27,87.10600477]
[1738828557835,0.03,202.33,202.3,0.25098]
[1738828558038,0.03,202.33,202.32,9.38550099]
[1738828558251,0.03,202.33,202.31,9.38550099]
[1738828558941,0.03,202.33,202.3,9.63648099]
[1738828559234,0.03,202.33,202.31,4.9429]
[1738828559551,0.03,202.33,202.31,14.32840099]
[1738828561051,0.03,202.33,202.32,9.38550099]
[1738828562657,0.03,202.33,202.32,82.16220477]
[1738828562834,0.03,202.38,202.32,82.16220477]
[1738828562835,0.03,202.38,202.37,9.38550099]
[1738828563957,0.03,202.38,202.36,4.9416]
[1738828564750,0.03,202.38,202.36,14.32710099]
[1738828567364,0.03,202.38,202.37,9.38550099]
[1738828568863,0.03,202.38,202.37,14.32690099]
[1738828570667,0.03,202.38,202.36,9.38550099]
[1738828572269,0.03,202.38,202.37,4.9414]
[1738828575567,0.03,202.38,202.35,9.44850099]
[1738828577649,0.03,202.38,202.36,4.9416]
[1738828578172,30.0,202.37,202.35,0.063]
[1738828578382,9.38550099,202.36,202.35,0.063]
[1738828585383,39.38550099,202.37,202.35,0.063]
[1738828587877,9.38550099,202.36,202.35,0.063]
[1738828589595,39.38550099,202.37,202.35,0.063]
[1738828590294,30.0,202.37,202.35,0.063]
[1738828590499,0.03,202.38,202.35,0.063]
[1738828592270,0.03,202.38,202.35,9.44850099]
[1738828593092,0.03,202.38,202.36,0.37647]
[1738828594200,0.03,202.38,202.37,4.9414]
[1738828596300,0.03,202.38,202.37,14.32690099]
[1738828597210,0.03,202.38,202.37,4.9414]
[1738828607211,0.03,202.38,202.37,14.32690099]
[1738828610592,0.03,202.38,202.37,4.9414]
[1738828630847,0.03,202.38,202.37,5.31787]
[1738828631023,0.03,202.38,202.37,18.85520853]
[1738828632136,0.03,202.38,202.37,28.24070952]
[1738828632637,0.03,202.38,202.37,87.10360477]
[1738828635522,0.03,202.38,202.37,58.86289525]
[1738828638358,0.03,202.38,202.37,64.30625525]
[1738828638646,0.03,202.38,202.37,87.10360477]
[1738828639144,0.03,202.38,202.37,77.71810378]
[1738828640342,0.03,202.38,202.37,87.10360477]
[1738828647940,0.03,202.38,202.37,63.80429525]
[1738828654865,0.03,202.38,202.37,58.86289525]
[1738828655063,9.41550099,202.38,202.37,58.86289525]
[1738828656365,9.41550099,202.38,202.35,0.063]
[1738828656557,9.38550099,202.36,202.35,0.063]
[1738828657949,9.38550099,202.37,202.35,0.063]
[1738828659148,9.41550099,202.38,202.35,0.063]
[1738828660469,0.03,202.38,202.35,0.063]
[1738828665263,9.38550099,202.37,202.35,0.063]
[1738828665475,9.38550099,202.36,202.35,0.063]
[1738828665975,39.38550099,202.36,202.35,0.063]
[1738828669574,9.38550099,202.37,202.35,0.063]
[1738828669778,9.41550099,202.38,202.35,0.063]
[1738828672581,0.03,202.38,202.35,0.063]
[1738828675089,9.41550099,202.38,202.35,0.063]
[1738828675383,9.38550099,202.37,202.35,0.063]
[1738828675588,9.38550099,202.36,202.35,0.063]
[1738828677974,44.32710099,202.36,202.35,0.063]
[1738828679686,45.06340099,202.36,202.35,0.063]
[1738828680588,39.38550099,202.36,202.35,0.063]
[1738828684102,135.19734952,202.36,202.35,0.063]
[1738828684280,39.38550099,202.28,202.26,0.063]
[1738828687596,9.38550099,202.27,202.26,0.063]
[1738828692908,9.38550099,202.29,202.26,0.063]
[1738828693417,9.38550099,202.28,202.26,0.063]
[1738828693901,9.38550099,202.27,202.26,0.063]
[1738828695705,9.38550099,202.28,202.26,0.063]
[1738828697186,9.38550099,202.29,202.26,0.063]
[1738828697390,9.38550099,202.3,202.26,0.063]
[1738828699809,39.38550099,202.31,202.26,0.063]
[1738828699991,9.38550099,202.3,202.26,0.063]
[1738828701209,39.38550099,202.31,202.26,0.063]
[1738828704318,9.38550099,202.3,202.26,0.063]
[1738828710026,30.0,202.31,202.26,0.063]
[1738828710319,9.38550099,202.3,202.26,0.063]
[1738828712728,39.38550099,202.27,202.26,0.063]
[1738828719014,44.32930099,202.27,202.26,0.063]
[1738828733741,45.06560099,202.27,202.26,0.063]
[1738828746844,13.66282853,202.26,202.25,0.0001]
[1738828747170,30.0,202.19,202.16,58.92589525]
[1738828747348,9.38550099,202.18,202.16,0.063]
[1738828750127,39.38550099,202.19,202.16,0.063]
[1738828751358,9.38550099,202.18,202.16,0.063]
[1738828754665,39.38550099,202.19,202.16,0.063]
[1738828755859,9.38550099,202.18,202.16,0.063]
[1738828757357,9.38550099,202.17,202.16,0.063]
[1738828758458,9.38550099,202.18,202.16,0.063]
[1738828758651,39.38550099,202.19,202.16,0.063]
[1738828758847,9.38550099,202.18,202.16,0.063]
[1738828759234,9.38550099,202.17,202.16,0.063]
[1738828761144,14.33180099,202.17,202.16,0.063]
[1738828768367,9.38550099,202.17,202.16,0.063]
[1738828768659,13.06550099,202.17,202.16,0.063]
[1738828771938,18.74810099,202.17,202.16,0.063]
[1738828773239,18.01180099,202.17,202.16,0.063]
[1738828777459,13.06550099,202.17,202.16,0.063]
[1738828779789,3.68,202.17,202.16,0.063]
[1738828781653,9.38550099,202.18,202.16,0.063]
[1738828781850,13.06550099,202.18,202.16,0.063]
[1738828784267,9.38550099,202.18,202.16,0.063]
[1738828785785,30.0,202.19,202.16,0.063]
[1738828785967,3.68,202.21,202.16,0.063]
[1738828786371,13.06550099,202.21,202.16,0.063]
[1738828788497,3.68,202.21,202.16,0.063]
[1738828790993,30.0,202.22,202.16,9.44850099]
[1738828793077,14.33030099,202.24,202.16,14.39490099]
[1738828793277,3.68,202.24,202.18,9.38550099]
[1738828793994,30.03,202.25,202.19,9.38550099]
[1738828794978,39.41550099,202.25,202.18,9.38550099]
[1738828795170,39.41550099,202.25,202.19,1.5619]
[1738828795574,44.35990099,202.25,202.19,1.5619]
[1738828797981,34.9744,202.25,202.19,10.94740099]
[1738828798180,30.03,202.25,202.19,15.89320099]
[1738828799199,30.03,202.25,202.19,6.5077]
[1738828801298,30.03,202.25,202.19,1.5619]
[1738828802305,0.03,202.25,202.19,1.5619]
[1738828802500,9.38550099,202.24,202.19,1.5619]
[1738828803175,9.41550099,202.25,202.19,1.5619]
[1738828803800,0.03,202.25,202.2,9.38550099]
[1738828804095,0.03,202.25,202.21,9.38550099]
[1738828804304,30.03,202.25,202.2,4.9455]
[1738828804476,0.03,202.25,202.21,9.38550099]
[1738828804677,0.03,202.25,202.22,9.38550099]
[1738828804898,0.03,202.25,202.23,9.63648099]
[1738828805280,0.03,202.25,202.24,3.68383379]
[1738828805473,0.03,202.3,202.28,13.66282853]
[1738828805677,0.03,202.3,202.29,15.85238099]
[1738828805897,0.03,202.3,202.29,156.13696438]
[1738828806093,0.03,202.3,202.29,155.39568099]
[1738828806603,3.71,202.38,202.29,155.39568099]
[1738828806604,30.0,202.44,202.36,20.25098]
[1738828806779,0.03,202.46,202.41,9.63648099]
[1738828807194,0.03,202.46,202.41,23.29930952]
[1738828807404,30.92365472,202.45,202.41,24.04017529]
[1738828807688,30.92365472,202.45,202.41,9.63648099]
[1738828807884,30.92365472,202.45,202.39,134.6]
[1738828807885,40.30915571,202.45,202.39,134.6]
[1738828808077,17.10722041,202.42,202.39,134.6]
[1738828808302,7.72171942,202.42,202.38,9.38550099]
[1738828808584,7.72171942,202.42,202.35,8.1467]
[1738828808585,7.72171942,202.42,202.39,0.25098]
[1738828808779,7.72171942,202.42,202.4,0.25098]
[1738828808985,7.72171942,202.42,202.41,23.04832952]
[1738828809280,17.10722041,202.42,202.35,8.1467]
[1738828809692,30.0,202.41,202.35,17.53220099]
[1738828809894,30.0,202.38,202.3,7.9794]
[1738828810100,30.0,202.38,202.3,6.4349]
[1738828810101,34.9413,202.38,202.3,6.4349]
[1738828810295,9.38550099,202.34,202.26,148.92950099]
[1738828810512,9.38550099,202.34,202.27,9.38550099]
[1738828810683,30.0,202.38,202.31,9.38550099]
[1738828810879,39.38550099,202.38,202.3,0.12549]
[1738828811085,39.38550099,202.38,202.3,9.38550099]
[1738828811506,9.38550099,202.37,202.3,9.38550099]
[1738828811812,30.0,202.31,202.25,10.93000099]
[1738828812015,40.12180099,202.31,202.24,6.069]
[1738828812184,9.38550099,202.29,202.24,7.70622551]
[1738828812484,9.38550099,202.3,202.24,7.70622551]
[1738828812683,50.3573168,202.31,202.24,7.70622551]
[1738828812994,30.0,202.31,202.24,27.32884231]
[1738828813198,30.0,202.31,202.25,14.6781168]
[1738828813793,30.0,202.31,202.24,27.32884231]
[1738828814088,30.0,202.31,202.25,14.6781168]
[1738828815392,44.6781168,202.34,202.26,19.8730968]
[1738828815695,44.6781168,202.34,202.24,142.30622551]
[1738828815696,30.0,202.31,202.25,14.6781168]
[1738828816013,30.0,202.28,202.24,22.38434231]
[1738828816216,30.0,202.28,202.24,7.70622551]
[1738828816726,30.0,202.28,202.23,14.6781168]
[1738828817110,44.6781168,202.31,202.23,14.6781168]
[1738828817724,44.7081168,202.31,202.23,14.6781168]
[1738828817926,30.03,202.31,202.26,14.6781168]
[1738828818098,0.03,202.31,202.28,14.6781168]
[1738828818607,0.03,202.31,202.29,14.6781168]
[1738828819404,0.03,202.31,202.28,14.6781168]
[1738828819715,0.03,202.31,202.24,14.65530873]
[1738828819716,0.03,202.31,202.29,14.6781168]
[1738828820428,0.03,202.31,202.3,14.6781168]
[1738828821607,0.03,202.31,202.3,14.9290968]
[1738828821802,0.03,202.31,202.3,19.8721968]
[1738828822989,0.03,202.31,202.3,19.6212168]
[1738828825413,0.03,202.31,202.3,19.8721968]
[1738828825817,0.03,202.31,202.3,33.53502533]
[1738828829705,44.6781168,202.44,202.34,0.50196]
[1738828830019,3.68,202.43,202.37,14.6781168]
[1738828830316,0.03,202.38,202.36,14.6781168]
[1738828830511,0.03,202.38,202.34,73.54101205]
[1738828830702,0.03,202.38,202.35,14.6781168]
[1738828831419,0.03,202.38,202.35,19.6200168]
[1738828832622,0.03,202.38,202.36,9.38128501]
[1738828833417,0.03,202.38,202.34,58.86289525]
[1738828834697,0.03,202.38,202.32,9.38128501]
[1738828835520,0.03,202.38,202.32,14.32388501]
[1738828835914,0.03,202.38,202.33,9.38128501]
[1738828836216,0.03,202.38,202.34,0.25098]
[1738828836519,0.03,202.38,202.34,9.63226501]
[1738828837522,0.03,202.38,202.35,9.38128501]
[1738828837710,0.03,202.38,202.35,14.32318501]
[1738828841117,0.03,202.38,202.35,4.9419]
[1738828841319,0.03,202.38,202.33,14.32338501]
[1738828841527,30.0,202.37,202.31,68.24418026]
[1738828841720,30.0,202.37,202.29,9.38128501]
[1738828841912,9.38128501,202.36,202.28,14.57586501]
[1738828842119,9.38128501,202.36,202.31,0.063]
[1738828842615,14.66873094,202.36,202.31,0.063]
[1738828842822,30.0,202.33,202.31,0.063]
[1738828845623,34.9424,202.33,202.31,0.063]
[1738828845831,50.34743094,202.33,202.31,0.063]
[1738828846708,19.61133094,202.32,202.31,0.063]
[1738828847432,14.66873094,202.32,202.31,0.063]
[1738828849624,49.61123094,202.33,202.31,0.063]
[1738828850231,14.66873094,202.32,202.31,0.063]
[1738828850452,19.61133094,202.32,202.31,0.063]
[1738828851333,4.9426,202.32,202.31,0.063]
[1738828854238,8.6226,202.32,202.31,0.063]
[1738828854424,37.82866947,202.32,202.31,0.063]
[1738828855115,37.85866947,202.32,202.31,0.063]
[1738828856242,23.32133094,202.32,202.31,0.063]
[1738828858837,18.37873094,202.32,202.31,0.063]
[1738828859045,3.71,202.32,202.31,0.063]
[1738828859342,0.03,202.32,202.31,0.063]
[1738828859842,4.9726,202.32,202.31,0.063]
[1738828860641,19.64133094,202.32,202.31,0.063]
[1738828862118,0.03,202.32,202.31,0.063]
[1738828865127,0.03,202.32,202.31,9.44967339]
[1738828865846,0.03,202.32,202.31,23.36348192]
[1738828866622,0.03,202.32,202.31,28.63524909]
[1738828867045,0.03,202.32,202.31,33.57814909]
[1738828868240,0.03,202.38,202.34,0.25098]
[1738828868425,0.03,202.38,202.37,14.65844056]
[1738828869026,0.03,202.38,202.37,20.10180056]
[1738828869227,0.03,202.38,202.37,168.11364909]
[1738828870428,0.03,202.38,202.37,154.45082056]
[1738828870850,0.03,202.38,202.37,168.11364909]
[1738828872951,0.03,202.38,202.37,154.19984056]
[1738828873139,0.03,202.38,202.37,149.25844056]
[1738828873344,0.03,202.38,202.37,14.65844056]
[1738828873652,0.03,202.38,202.37,14.90942056]
[1738828874452,0.03,202.38,202.37,19.85082056]
[1738828874833,0.03,202.38,202.37,33.51364909]
[1738828875939,0.03,202.38,202.37,34.25461267]
[1738828877938,0.03,202.46,202.42,0.25098]
[1738828878143,0.03,202.46,202.45,14.65844056]
[1738828880036,0.03,202.46,202.44,14.65844056]
[1738828882056,0.03,202.46,202.42,63.80309525]
[1738828882057,0.03,202.46,202.43,14.65844056]
[1738828882933,0.03,202.46,202.44,14.65844056]
[1738828884859,0.03,202.46,202.45,14.65844056]
[1738828885155,0.03,202.46,202.44,19.59804056]
[1738828886365,0.03,202.46,202.45,14.65844056]
[1738828886744,0.03,202.46,202.45,9.37355815]
[1738828889382,0.03,202.46,202.45,23.28736668]
[1738828889684,0.03,202.46,202.45,28.22676668]
[1738828893079,0.03,202.46,202.45,14.31295815]
[1738828893257,0.03,202.46,202.44,9.37355815]
[1738828897091,0.03,202.46,202.43,9.37355815]
[1738828897388,0.03,202.46,202.41,4.9402]
[1738828897389,0.03,202.46,202.41,14.31375815]
[1738828897778,0.03,202.49,202.48,13.91380853]
[1738828898079,0.03,202.5,202.48,14.6544048]
[1738828898263,0.03,202.5,202.49,9.37355815]
[1738828899288,0.03,202.5,202.49,28.22586668]
[1738828899782,0.03,202.5,202.49,14.31205815]
[1738828900577,0.03,202.5,202.48,9.37355815]
[1738828900887,0.03,202.5,202.48,14.64138788]
[1738828901666,0.03,202.5,202.47,14.64138788]
[1738828902794,0.03,202.5,202.46,19.58058788]
[1738828903094,0.03,202.5,202.45,14.64138788]
[1738828903461,30.0,202.47,202.42,19.58158788]
[1738828903671,30.0,202.47,202.42,4.9402]
[1738828903875,30.0,202.47,202.42,19.58158788]
[1738828906987,30.0,202.47,202.43,14.64138788]
[1738828907203,44.67138788,202.5,202.41,0.25098]
[1738828907502,30.03,202.5,202.46,14.64138788]
[1738828908302,30.03,202.5,202.46,19.58048788]
[1738828909203,0.03,202.5,202.46,19.58048788]
[1738828909404,0.03,202.5,202.49,14.64138788]
[1738828909770,30.0,202.48,202.42,14.64138788]
[1738828909996,30.0,202.45,202.4,14.64138788]
[1738828911499,30.0,202.45,202.4,19.58198788]
[1738828912096,30.0,202.45,202.39,14.64138788]
[1738828912298,44.64138788,202.45,202.38,19.64548788]
[1738828912609,18.32138788,202.44,202.38,5.0041]
[1738828912968,44.64138788,202.42,202.38,0.063]
[1738828913205,30.0,202.42,202.38,0.063]
[1738828915414,45.37768788,202.42,202.38,0.063]
[1738828915701,30.0,202.39,202.38,0.063]
[1738828917812,30.0,202.39,202.25,0.063]
[1738828917813,50.0,202.3,202.25,0.063]
[1738828918010,44.64138788,202.26,202.25,0.063]
[1738828918179,1.24443228,202.39,202.25,208.35589525]
[1738828918378,31.5457,202.47,202.31,1.0]
[1738828918580,30.0,202.44,202.34,20.0]
[1738828918802,31.5457,202.47,202.38,0.50196]
[1738828919493,7.72171942,202.46,202.41,14.64138788]
[1738828920194,7.72171942,202.46,202.39,19.58228788]
[1738828920488,30.0,202.44,202.37,14.64138788]
[1738828922880,30.0,202.4,202.33,14.64138788]
[1738828923300,14.64138788,202.39,202.31,14.64138788]
[1738828923501,30.0,202.37,202.31,14.64138788]
[1738828923915,30.0,202.35,202.29,14.64138788]
[1738828925305,51.21908788,202.35,202.27,14.64138788]
[1738828925505,30.0,202.32,202.25,14.70438788]
[1738828925702,30.0,202.29,202.25,14.70438788]
[1738828926090,33.96,202.32,202.25,14.70438788]
[1738828926893,33.96,202.32,202.31,0.063]
[1738828928110,30.0,202.32,202.31,0.063]
[1738828928288,3.96,202.34,202.31,0.063]
[1738828930219,31.6357,202.35,202.31,14.70438788]
[1738828930519,122.5832,202.38,202.34,14.64138788]
[1738828930814,33.94,202.38,202.34,14.64138788]
[1738828930984,33.94,202.38,202.31,0.063]
[1738828930985,30.0,202.38,202.35,14.64138788]
[1738828931201,1.5019,202.4,202.37,14.64138788]
[1738828931523,1.5019,202.4,202.36,14.64138788]
[1738828931697,30.0,202.38,202.33,14.64138788]
[1738828933204,30.0,202.38,202.34,14.64138788]
[1738828933518,30.0,202.38,202.33,14.64138788]
[1738828933818,30.0,202.38,202.32,73.50428313]
[1738828933996,30.0,202.38,202.32,14.64138788]
[1738828936226,34.9412,202.38,202.32,14.64138788]
[1738828938902,30.0,202.38,202.32,14.64138788]
[1738828939235,30.0,202.38,202.32,14.70438788]
[1738828939433,30.0,202.35,202.32,14.70438788]
[1738828940224,30.0,202.35,202.32,0.063]
[1738828940931,14.64138788,202.33,202.32,0.063]
[1738828942206,26.11468788,202.33,202.32,0.063]
[1738828946736,6.5309,202.33,202.32,0.063]
[1738828946919,87.3421,202.34,202.32,0.063]
[1738828947731,82.4,202.34,202.32,0.063]
[1738828947905,86.3,202.34,202.32,0.063]
[1738828948113,82.4,202.34,202.32,0.063]
[1738828950605,20.0,202.33,202.32,0.063]
[1738828950919,34.64138788,202.33,202.32,0.063]
[1738828952030,49.71622641,202.33,202.32,0.063]
[1738828952642,132.00542853,202.32,202.31,0.063]
[1738828952843,146.64681641,202.32,202.31,0.063]
[1738828953143,44.64138788,202.26,202.25,0.063]
[1738828955340,49.58548788,202.26,202.25,0.063]
[1738828957039,64.37380641,202.26,202.25,0.063]
[1738828957852,30.0,202.2,202.19,0.063]
[1738828958027,48.52138788,202.2,202.19,0.063]
[1738828959016,48.64687788,202.2,202.19,0.063]
[1738828959211,67.00422641,202.2,202.19,0.063]
[1738828959415,67.12971641,202.2,202.19,0.063]
[1738828960040,0.12549,202.18,202.17,0.063]
[1738828960243,28.17872641,202.18,202.17,0.063]
[1738828960441,51.12549,202.15,202.14,0.063]
[1738828960641,65.76687788,202.15,202.14,0.063]
[1738828961430,70.71367788,202.15,202.14,0.063]
[1738828961630,69.71367788,202.15,202.14,0.063]
[1738828962334,50.0,202.15,202.14,0.063]
[1738828965862,30.0,202.15,202.14,0.063]
[1738828966735,30.0,202.18,202.14,14.70438788]
[1738828968345,30.0,202.18,202.14,19.65128788]
[1738828968532,33.88,202.21,202.17,14.64138788]
[1738828968726,30.0,202.24,202.19,14.64138788]
[1738828968934,30.0,202.24,202.21,14.64138788]
[1738828969153,30.0,202.24,202.18,14.64138788]
[1738828969455,30.0,202.21,202.18,14.64138788]
[1738828970430,30.0,202.24,202.19,14.64138788]
[1738828970623,30.0,202.24,202.2,14.64138788]
[1738828970845,30.0,202.24,202.19,14.64138788]
[1738828971255,30.0,202.24,202.15,5.19778]
[1738828971256,30.0,202.21,202.17,14.64138788]
[1738828972627,30.0,202.24,202.2,14.64138788]
[1738828973729,30.0,202.24,202.2,19.58688788]
[1738828974459,30.0,202.24,202.2,14.64138788]
[1738828976452,30.0,202.24,202.18,14.64138788]
[1738828976659,34.9446,202.24,202.18,14.64138788]
[1738828976833,30.0,202.21,202.18,14.64138788]
[1738828977270,30.0,202.21,202.15,73.50428313]
[1738828977942,30.0,202.21,202.16,14.64138788]
[1738828981375,34.9453,202.21,202.16,14.64138788]
[1738828982047,30.0,202.18,202.16,14.64138788]
[1738828982248,30.0,202.18,202.14,0.063]
[1738828982249,30.0,202.18,202.14,14.70438788]
[1738828983676,34.9461,202.18,202.14,0.063]
[1738828984171,30.0,202.15,202.14,0.063]
[1738828985063,49.58818788,202.15,202.14,0.063]
[1738828985374,63.25101641,202.15,202.14,0.063]
[1738828987387,64.25101641,202.15,202.14,0.0001]
[1738828987560,65.77091641,202.15,202.14,0.0001]
[1738828987870,63.53733853,202.12,202.11,0.0001]
[1738828988040,78.17872641,202.12,202.11,0.0001]
[1738828988765,78.30421641,202.12,202.11,0.0001]
[1738828988958,15.53733853,202.11,202.1,0.0001]
[1738828989140,13.78831853,202.1,202.09,0.0001]
[1738828989472,125.47109429,202.1,202.09,0.0001]
[1738828990869,130.41909429,202.1,202.09,0.0001]
[1738828993685,1.0,202.08,202.0,0.0496]
[1738828993863,1.0,202.09,202.06,0.0001]
[1738828993864,60.30421641,202.07,202.06,0.0001]
[1738828994266,61.2102347,202.07,202.06,0.0001]
[1738828995387,35.20118,202.01,202.0,0.0496]
[1738828995572,67.07441641,202.01,202.0,0.0496]
[1738828997417,67.19990641,202.01,202.0,0.0496]
[1738828997571,68.82690641,202.01,202.0,0.0496]
[1738828997773,69.82690641,202.01,202.0,0.0496]
[1738828998680,68.82690641,202.01,202.0,0.0496]
[1738828999093,69.82690641,202.01,202.0,0.0496]
[1738828999901,68.82690641,202.01,202.0,0.0496]
[1738829000402,69.82690641,202.01,202.0,0.0496]
[1738829002392,68.82690641,202.01,202.0,0.0496]
[1738829003297,69.82690641,202.01,202.0,0.0496]
[1738829003471,30.0,201.94,201.93,0.063]
[1738829003866,58.17872641,201.94,201.93,0.063]
[1738829004271,58.30421641,201.94,201.93,0.063]
[1738829004684,58.17872641,201.94,201.93,0.063]
[1738829004992,63.13062641,201.94,201.93,0.063]
[1738829005299,64.25611641,201.94,201.93,0.063]
[1738829006605,63.25611641,201.94,201.93,0.063]
[1738829007107,49.59328788,201.94,201.93,0.063]
[1738829007295,30.0,201.94,201.93,0.063]
[1738829007499,33.84,201.94,201.93,0.063]
[1738829007894,38.7919,201.94,201.93,0.063]
[1738829008506,33.84,201.94,201.93,0.063]
[1738829009084,53.43328788,201.94,201.93,0.063]
[1738829009515,38.7919,201.94,201.93,0.063]
[1738829009717,33.84,201.94,201.93,0.063]
[1738829011909,53.43328788,201.94,201.93,0.063]
[1738829013013,30.0,201.94,201.93,0.063]
[1738829013203,30.0,201.94,201.93,14.70438788]
[1738829013406,3.82,201.96,201.93,14.70438788]
[1738829013611,30.0,201.97,201.95,14.64138788]
[1738829013797,30.0,201.97,201.96,14.64138788]
[1738829014218,33.82,202.0,201.96,14.64138788]
[1738829014417,30.0,202.0,201.98,14.64138788]
[1738829015394,30.0,202.03,201.98,14.64138788]
[1738829016299,30.0,202.03,202.0,14.64138788]
[1738829016606,30.0,202.03,201.99,14.64138788]
[1738829018312,30.0,202.03,201.98,14.64138788]
[1738829018712,30.0,202.03,201.98,22.56498788]
[1738829021316,30.0,202.03,201.99,14.64138788]
[1738829022229,30.0,202.03,201.98,22.56498788]
[1738829022525,30.0,202.03,201.98,27.51588788]
[1738829023297,30.0,202.0,201.95,14.64138788]
[1738829023510,30.0,202.0,201.93,8.1188]
[1738829023511,30.0,201.97,201.93,22.76018788]
[1738829024021,30.0,201.97,201.93,0.063]
[1738829026324,30.0,201.94,201.93,0.063]
[1738829026824,33.8,201.94,201.93,0.063]
[1738829028110,38.7519,201.94,201.93,0.063]
[1738829028314,39.00288,201.94,201.93,0.063]
[1738829028520,52.54021853,201.94,201.93,0.063]
[1738829029335,38.7519,201.94,201.93,0.063]
[1738829029726,33.8,201.94,201.93,0.063]
[1738829030339,38.7519,201.94,201.93,0.063]
[1738829030537,52.54021853,201.94,201.93,0.063]
[1738829030837,52.41472853,201.94,201.93,0.063]
[1738829032328,52.54021853,201.94,201.93,0.063]
[1738829032643,53.54021853,201.94,201.93,0.063]
[1738829034221,52.41472853,201.94,201.93,0.063]
[1738829035451,30.0,201.94,201.93,0.063]
[1738829035631,33.8,201.94,201.93,0.063]
[1738829036138,30.0,201.94,201.93,0.063]
[1738829036363,33.8,201.94,201.93,0.063]
[1738829038553,48.44138788,201.94,201.93,0.063]
[1738829040674,55.10897788,201.94,201.93,0.0001]
[1738829040867,43.66282853,201.86,201.85,0.03]
[1738829041170,58.30421641,201.86,201.85,0.03]
[1738829042175,30.0,201.86,201.85,0.03]
[1738829042338,44.64138788,201.86,201.85,0.03]
[1738829042840,49.59528788,201.86,201.85,0.03]
[1738829043239,63.25811641,201.86,201.85,0.03]
[1738829047050,30.0,201.86,201.85,0.03]
[1738829047245,33.84,201.86,201.85,0.03]
[1738829049899,38.7939,201.86,201.85,0.03]
[1738829051274,67.09811641,201.86,201.85,0.03]
[1738829051479,37.09811641,201.86,201.85,0.03]
[1738829051981,37.22360641,201.86,201.85,0.03]
[1738829052156,68.85540641,201.86,201.85,0.03]
[1738829052654,70.85540641,201.86,201.85,0.03]
[1738829055680,68.85540641,201.86,201.85,0.03]
[1738829057682,65.01540641,201.86,201.85,0.03]